bitfinex/quotes_BTCUSD_20250822
["timestamp","ask_amount","ask_price","bid_price","bid_amount"]
[1755876900350,1.62923314,116970.0,116960.0,0.24840475]
[1755876900559,1.62394314,116970.0,116960.0,0.24840475]
[1755876901192,0.00316,116970.0,116960.0,0.24840475]
[1755876902035,0.00796162,116970.0,116940.0,0.431411]
[1755876902263,0.00796162,116970.0,116950.0,0.15708]
[1755876902474,0.00316,116960.0,116940.0,0.51844022]
[1755876902686,0.00213,116950.0,116940.0,0.06586447]
[1755876902897,0.00529,116950.0,116940.0,0.02136447]
[1755876903110,0.15716,116960.0,116940.0,0.15716]
[1755876903315,0.00316,116960.0,116940.0,0.15822791]
[1755876903557,0.00267162,116970.0,116940.0,0.24711266]
[1755876903758,0.00316,116970.0,116940.0,0.24604475]
[1755876903980,0.00583162,116970.0,116950.0,0.00106763]
[1755876904191,0.00267162,116970.0,116950.0,0.15822763]
[1755876904400,0.00316,116970.0,116950.0,0.15822763]
[1755876904615,0.00316,116970.0,116950.0,0.15922763]
[1755876904827,0.00213,116960.0,116950.0,0.15716]
[1755876905062,0.00529,116960.0,116950.0,0.15708]
[1755876905713,0.00529,116960.0,116940.0,0.08888475]
[1755876905916,0.00529,116960.0,116950.0,0.157]
[1755876906120,0.00529,116960.0,116950.0,0.1575]
[1755876906547,0.00529,116960.0,116950.0,0.1585]
[1755876907636,0.00529,116960.0,116950.0,0.1595]
[1755876908056,0.39960902,116980.0,116950.0,0.16056763]
[1755876908265,0.00316,116970.0,116950.0,0.16056763]
[1755876909125,0.00316,116970.0,116950.0,0.15956763]
[1755876909340,0.00583162,116970.0,116950.0,0.1585]
[1755876909548,0.00583162,116970.0,116950.0,0.1575]
[1755876910178,0.00316,116960.0,116950.0,0.1575]
[1755876910435,0.00529,116960.0,116950.0,0.1585]
[1755876911305,0.00529,116960.0,116950.0,0.0015]
[1755876911540,0.00529,116960.0,116950.0,0.15906]
[1755876911768,0.00529,116960.0,116950.0,0.0025]
[1755876912047,0.00529,116960.0,116950.0,0.15918]
[1755876912298,0.00529,116960.0,116930.0,0.091413]
[1755876912519,0.00529,116960.0,116940.0,0.15664]
[1755876912520,0.00213,116960.0,116940.0,0.15664]
[1755876912749,0.00316,116950.0,116930.0,0.06576447]
[1755876912979,0.00316,116950.0,116930.0,0.22240447]
[1755876913400,0.00213,116940.0,116930.0,0.23210092]
[1755876913949,0.00529,116940.0,116930.0,0.23210092]
[1755876914163,0.00316,116940.0,116930.0,0.23310092]
[1755876914370,0.00267208,116950.0,116930.0,0.23310092]
[1755876914581,0.00529,116940.0,116930.0,0.23210092]
[1755876914812,0.00583208,116950.0,116940.0,0.002]
[1755876915021,0.00480208,116950.0,116940.0,0.002]
[1755876915439,0.225,116960.0,116940.0,0.0030681]
[1755876915656,0.22816,116960.0,116940.0,0.0010681]
[1755876915863,0.00316,116970.0,116950.0,0.1568]
[1755876916071,0.22816,116970.0,116950.0,0.1568]
[1755876916250,0.00316,116970.0,116950.0,0.1568]
[1755876917528,0.00316,116970.0,116960.0,0.00106737]
[1755876917795,0.00524,116970.0,116950.0,0.1568]
[1755876918007,0.00624,116970.0,116950.0,0.1573]
[1755876919907,0.00624,116970.0,116960.0,0.001]
[1755876920360,0.00624,116970.0,116950.0,0.1573]
[1755876920777,0.00524,116970.0,116950.0,0.1583]
[1755876921214,0.00624,116970.0,116950.0,0.1583]
[1755876921429,0.00524,116970.0,116950.0,0.1573]
[1755876921668,0.00309,116960.0,116950.0,0.0005]
[1755876921890,0.00309,116960.0,116950.0,0.15682]
[1755876922758,0.00517,116960.0,116950.0,0.15682]
[1755876922969,0.00309,116960.0,116950.0,0.15682]
[1755876923381,0.00309,116960.0,116950.0,0.0005]
[1755876923586,0.00517,116960.0,116950.0,0.15778]
[1755876923827,0.00517,116960.0,116950.0,0.15978]
[1755876924245,0.00517,116960.0,116950.0,0.0035]
[1755876924424,0.00517,116960.0,116950.0,0.15958]
[1755876925379,0.00517,116960.0,116950.0,0.2497]
[1755876925609,0.00517,116960.0,116950.0,0.0035]
[1755876926511,0.02261902,116960.0,116950.0,0.0035]
[1755876926978,0.06324008,116960.0,116950.0,0.0035]
[1755876927196,0.06591193,116960.0,116950.0,0.0035]
[1755876927433,0.02529087,116960.0,116950.0,0.0035]
[1755876929911,0.02261902,116960.0,116950.0,0.0035]
[1755876930688,0.02529087,116960.0,116950.0,0.0035]
[1755876931069,0.02261902,116960.0,116950.0,0.0035]
[1755876931271,0.02053902,116960.0,116950.0,0.0035]
[1755876931495,0.24553902,116970.0,116950.0,0.0035]
[1755876931706,0.00576185,116960.0,116950.0,0.0035]
[1755876931936,0.00517,116960.0,116950.0,0.0035]
[1755876932150,0.00784185,116960.0,116950.0,0.0035]
[1755876932571,0.00784185,116960.0,116950.0,0.0015]
[1755876932821,0.00784185,116960.0,116950.0,0.0005]
[1755876933025,0.01844902,116970.0,116950.0,0.0015]
[1755876933230,0.02321064,116970.0,116950.0,0.00256745]
[1755876933437,0.02053902,116970.0,116950.0,0.00256745]
[1755876933642,0.00309,116970.0,116950.0,0.00256745]
[1755876933855,0.00309,116970.0,116950.0,0.15908745]
[1755876934084,0.00576162,116970.0,116950.0,0.15808745]
[1755876934499,0.00676162,116970.0,116950.0,0.15702]
[1755876934705,0.00517,116960.0,116950.0,0.0005]
[1755876935127,0.00517,116960.0,116950.0,0.0025]
[1755876935583,0.02529087,116960.0,116950.0,0.0005]
[1755876936003,0.02529087,116960.0,116950.0,0.0015]
[1755876936210,0.02529087,116960.0,116950.0,0.0025]
[1755876936415,0.02529087,116960.0,116950.0,0.0015]
[1755876937277,0.02053902,116960.0,116950.0,0.0015]
[1755876937479,0.00517,116960.0,116950.0,0.0015]
[1755876937904,0.00784185,116960.0,116950.0,0.0015]
[1755876938113,0.00517,116960.0,116950.0,0.0035]
[1755876938327,0.38032,116980.0,116950.0,0.00456763]
[1755876938534,0.22809,116970.0,116950.0,0.00456763]
[1755876938741,0.22809,116970.0,116950.0,0.15988763]
[1755876938951,0.00309,116960.0,116950.0,0.15988763]
[1755876939411,0.00309,116960.0,116950.0,0.15688763]
[1755876939612,0.00309,116960.0,116950.0,0.15582]
[1755876940173,0.00309,116960.0,116950.0,0.15788763]
[1755876940371,0.00517,116960.0,116950.0,0.15682]
[1755876940583,0.00517,116960.0,116950.0,0.0015]
[1755876940802,0.00517,116960.0,116950.0,0.00256763]
[1755876940998,0.00517,116960.0,116950.0,0.26926763]
[1755876941310,0.00517,116960.0,116950.0,0.2682]
[1755876941516,0.00517,116960.0,116950.0,0.2702]
[1755876943078,0.00784185,116960.0,116950.0,0.2702]
[1755876944731,0.00309,116960.0,116950.0,0.2702]
[1755876944939,0.00517,116960.0,116950.0,0.2702]
[1755876945570,0.02529087,116960.0,116950.0,0.2702]
[1755876947042,0.02529087,116960.0,116950.0,0.0035]
[1755876958900,0.02529087,116960.0,116940.0,0.520456]
[1755876959109,0.00299,116950.0,116940.0,0.365696]
[1755876959310,0.00515,116950.0,116940.0,0.365696]
[1755876959877,0.00515,116950.0,116940.0,0.025696]
[1755876960113,0.00299,116950.0,116940.0,0.025696]
[1755876960314,0.38061503,116980.0,116940.0,0.025696]
[1755876960315,0.22799,116970.0,116940.0,0.0287641]
[1755876960519,0.00566185,116960.0,116950.0,0.15472]
[1755876960897,0.00267185,116960.0,116950.0,0.15472]
[1755876961094,0.00299,116970.0,116950.0,0.15472]
[1755876961321,0.22799,116970.0,116960.0,0.00106737]
[1755876961729,0.22799,116990.0,116960.0,0.34106737]
[1755876961937,0.00566139,116980.0,116970.0,0.15578672]
[1755876962157,0.00782139,116980.0,116970.0,0.15578672]
[1755876962366,0.00782139,116980.0,116970.0,0.15472]
[1755876963174,0.00782139,116980.0,116970.0,4.447e-05]
[1755876963344,0.00515,116980.0,116970.0,4.447e-05]
[1755876963552,0.00782139,116980.0,116970.0,4.447e-05]
[1755876965899,0.11215516,116980.0,116970.0,4.447e-05]
[1755876966040,0.22983139,116980.0,116960.0,0.15472]
[1755876966277,8.265e-05,116980.0,116960.0,0.155787]
[1755876966499,8.265e-05,116980.0,116960.0,0.18148]
[1755876966500,0.22508265,116980.0,116960.0,0.18148]
[1755876966713,0.22807265,116980.0,116960.0,0.180413]
[1755876966913,0.22807265,116980.0,116970.0,0.0010669]
[1755876967143,0.23023265,116980.0,116960.0,0.180413]
[1755876967633,0.23023265,116980.0,116960.0,0.181413]
[1755876967836,0.00299,116970.0,116960.0,0.181413]
[1755876967951,0.00299,116970.0,116960.0,0.180413]
[1755876968777,0.22508265,116980.0,116960.0,0.180413]
[1755876968988,0.00299,116970.0,116960.0,0.182413]
[1755876969192,0.22807265,116980.0,116960.0,0.182413]
[1755876969827,0.00299,116970.0,116960.0,0.182413]
[1755876970056,0.00515,116970.0,116960.0,0.027693]
[1755876970262,0.00782162,116970.0,116960.0,0.027693]
[1755876970471,0.00782162,116970.0,116960.0,0.029693]
[1755876970668,0.00782162,116970.0,116960.0,0.027693]
[1755876971137,0.00782162,116970.0,116960.0,0.002]
[1755876971639,0.00782162,116970.0,116960.0,0.004]
[1755876972753,0.00299,116970.0,116960.0,0.00506718]
[1755876972958,0.22807265,116980.0,116960.0,0.00506718]
[1755876973136,0.3149574,116980.0,116960.0,0.00506718]
[1755876973346,0.22807265,116980.0,116960.0,0.00506718]
[1755876973557,0.00299,116970.0,116960.0,0.00506718]
[1755876973777,0.00782162,116970.0,116960.0,0.002]
[1755876974152,0.00782162,116970.0,116960.0,0.15464]
[1755876974441,0.00782162,116970.0,116960.0,0.1546]
[1755876974657,0.13282162,116970.0,116960.0,0.1566]
[1755876975063,0.00782162,116970.0,116960.0,0.002]
[1755876975344,0.23282162,116970.0,116960.0,0.1566]
[1755876975552,0.23015,116970.0,116960.0,0.1566]
[1755876975776,0.23015,116970.0,116960.0,0.1576]
[1755876977203,0.00515,116970.0,116960.0,0.1576]
[1755876977446,0.23282162,116970.0,116960.0,0.1566]
[1755876977655,0.23015,116970.0,116960.0,0.004]
[1755876978100,0.38475,116970.0,116950.0,0.026192]
[1755876978390,0.38176,116970.0,116950.0,0.026192]
[1755876978626,0.00564185,116960.0,116950.0,0.0005]
[1755876978847,0.00768185,116960.0,116950.0,0.0005]
[1755876980610,0.00564185,116960.0,116950.0,0.0005]
[1755876981050,0.00768185,116960.0,116950.0,0.0005]
[1755876981291,0.00868185,116960.0,116950.0,0.0005]
[1755876984303,0.00397,116960.0,116950.0,0.0005]
[1755876984534,0.001,116960.0,116950.0,0.00156763]
[1755876984885,0.126,116960.0,116950.0,0.02726063]
[1755876985064,0.001,116960.0,116950.0,0.02726063]
[1755876986180,0.001,116960.0,116950.0,0.45307775]
[1755876987052,8.265e-05,116980.0,116960.0,0.54]
[1755876987258,0.00297,116970.0,116950.0,0.027193]
[1755876987458,0.22797,116970.0,116960.0,0.15452]
[1755876987660,0.00501,116970.0,116960.0,0.15452]
[1755876987870,0.23001,116970.0,116960.0,0.15452]
[1755876988087,0.225,116970.0,116960.0,0.15452]
[1755876988291,0.00405265,116980.0,116960.0,0.24247193]
[1755876988514,0.22608265,116980.0,116960.0,0.24140475]
[1755876989118,0.22508265,116980.0,116970.0,0.025688]
[1755876989423,0.22805265,116980.0,116970.0,0.025688]
[1755876990710,0.23009265,116980.0,116970.0,0.025688]
[1755876991123,0.23109265,116980.0,116970.0,0.025688]
[1755876992184,0.00609265,116980.0,116970.0,0.025688]
[1755876992363,0.00108265,116980.0,116970.0,0.02675472]
[1755876992622,0.22608265,116980.0,116970.0,0.02675472]
[1755876993049,0.00108265,116980.0,116970.0,0.02675472]
[1755876993255,0.00108265,116980.0,116970.0,0.45363947]
[1755876993463,0.00108265,116980.0,116970.0,0.45257275]
[1755876994536,8.265e-05,116980.0,116970.0,0.45257275]
[1755876994745,8.265e-05,116980.0,116970.0,0.45357275]
[1755876994958,8.265e-05,116980.0,116970.0,0.45457275]
[1755877007832,8.265e-05,116980.0,116970.0,0.45357275]
[1755877008088,8.265e-05,116980.0,116970.0,0.45257275]
[1755877008316,0.00108265,116980.0,116970.0,0.45557275]
[1755877008545,0.00108265,116980.0,116970.0,0.45857275]
[1755877014242,0.00016024,116980.0,116970.0,0.45857275]
[1755877014928,0.00016024,116980.0,116970.0,0.11857275]
[1755877015392,0.00332024,116980.0,116970.0,0.11857275]
[1755877015616,0.00548024,116980.0,116970.0,0.24112475]
[1755877015841,0.00548024,116980.0,116970.0,0.24454975]
[1755877016259,0.00016024,116980.0,116970.0,0.24454975]
[1755877016983,0.00548024,116980.0,116970.0,0.24454975]
[1755877017211,0.00332024,116980.0,116970.0,0.24454975]
[1755877017466,0.00548024,116980.0,116970.0,0.24454975]
[1755877017906,0.00332024,116980.0,116970.0,0.24454975]
[1755877018578,0.00548024,116980.0,116970.0,0.24454975]
[1755877019023,0.00548024,116980.0,116970.0,0.24112475]
[1755877019248,0.00548024,116980.0,116970.0,0.08688475]
[1755877019473,0.00548024,116980.0,116970.0,0.15424]
[1755877019721,0.00548024,116980.0,116950.0,0.10522037]
[1755877019986,0.02060902,116970.0,116960.0,0.15424]
[1755877020214,0.58776902,116970.0,116950.0,0.06285795]
[1755877020451,0.58776902,116970.0,116930.0,0.00977645]
[1755877020452,0.00316,116960.0,116930.0,0.00977645]
[1755877020698,0.00216,116940.0,116910.0,0.225691]
[1755877020932,0.58244902,116930.0,116920.0,0.44753531]
[1755877021164,0.58776902,116930.0,116920.0,0.44753531]
[1755877021398,0.24244902,116920.0,116910.0,0.0855]
[1755877021632,0.24776902,116920.0,116910.0,0.18694498]
[1755877021889,0.24776902,116920.0,116910.0,0.03266498]
[1755877022123,0.24776902,116920.0,116910.0,0.18712947]
[1755877022358,0.24776902,116920.0,116910.0,0.15446449]
[1755877022628,0.24776902,116920.0,116910.0,0.00014449]
[1755877022872,0.75468925,116920.0,116910.0,0.00014449]
[1755877023107,0.225,116890.0,116870.0,0.0004]
[1755877023344,0.56716,116880.0,116870.0,0.00088292]
[1755877023585,0.225,116860.0,116850.0,0.0009]
[1755877023896,0.22716,116860.0,116850.0,0.0009]
[1755877023985,0.24460902,116860.0,116850.0,0.03348727]
[1755877024221,0.24460902,116860.0,116850.0,0.0009]
[1755877024222,0.24776902,116860.0,116850.0,0.0009]
[1755877024477,0.58776902,116860.0,116850.0,0.0009]
[1755877024719,0.58244902,116850.0,116820.0,0.00487078]
[1755877024956,0.56716,116830.0,116820.0,0.00487078]
[1755877025192,0.58460902,116830.0,116820.0,0.03314397]
[1755877025430,0.24776902,116830.0,116820.0,0.0004]
[1755877025667,0.30654592,116830.0,116820.0,0.0004]
[1755877025902,0.24776902,116830.0,116820.0,0.03247962]
[1755877026133,0.24776902,116830.0,116820.0,0.0004]
[1755877026377,0.24825104,116830.0,116820.0,0.0004]
[1755877026609,0.33513579,116830.0,116820.0,0.0004]
[1755877026844,0.24825104,116830.0,116820.0,0.00147358]
[1755877027090,0.24825104,116830.0,116820.0,0.00247358]
[1755877027091,0.25025104,116830.0,116820.0,0.00247358]
[1755877027313,0.22748202,116830.0,116820.0,0.00463358]
[1755877027550,0.22748202,116830.0,116820.0,0.07420953]
[1755877027788,0.00248202,116830.0,116820.0,0.34100311]
[1755877028024,0.25025104,116830.0,116820.0,0.0014]
[1755877028715,0.25125104,116830.0,116820.0,0.0014]
[1755877028945,0.24925104,116830.0,116820.0,0.0004]
[1755877029169,0.27597304,116830.0,116820.0,0.00147358]
[1755877029411,0.02820402,116830.0,116820.0,0.00363358]
[1755877029632,0.25320402,116830.0,116820.0,0.20256]
[1755877029854,0.25536402,116830.0,116820.0,0.20256]
[1755877030086,0.25852402,116830.0,116820.0,0.35788]
[1755877030532,0.30182544,116830.0,116820.0,0.0004]
[1755877030540,0.38671019,116830.0,116820.0,0.0004]
[1755877030784,0.48671019,116830.0,116820.0,0.0004]
[1755877031006,0.48671019,116830.0,116820.0,0.0024]
[1755877031449,0.27397304,116830.0,116820.0,0.0024]
[1755877031737,0.27397304,116830.0,116820.0,0.0044]
[1755877032232,0.27397304,116830.0,116820.0,0.0004]
[1755877032491,0.27397304,116830.0,116820.0,0.00147358]
[1755877032743,0.27165304,116830.0,116820.0,0.00363358]
[1755877032979,0.25220402,116830.0,116820.0,0.00363358]
[1755877033206,0.25752402,116830.0,116820.0,0.0004]
[1755877033431,0.27797304,116830.0,116820.0,0.0014]
[1755877033652,0.27497304,116830.0,116820.0,0.0004]
[1755877033867,0.02720402,116830.0,116820.0,0.00363358]
[1755877034073,0.02720402,116830.0,116820.0,0.34605358]
[1755877034303,0.02920402,116830.0,116820.0,0.34256]
[1755877034522,0.02920402,116830.0,116820.0,0.42944475]
[1755877034756,0.00348202,116830.0,116820.0,0.43186475]
[1755877035416,0.00148202,116830.0,116820.0,0.51736475]
[1755877035664,0.00148202,116830.0,116820.0,0.5552877]
[1755877035883,0.00148202,116830.0,116820.0,0.6796167]
[1755877036116,0.00048202,116830.0,116820.0,0.6796167]
[1755877036539,0.00048202,116830.0,116820.0,0.6826167]
[1755877036540,0.00148202,116830.0,116820.0,0.6826167]
[1755877037243,0.00048202,116830.0,116820.0,0.69706572]
[1755877037478,0.225,116890.0,116870.0,0.54]
[1755877037692,0.22816,116900.0,116890.0,0.34]
[1755877037905,0.23018,116900.0,116890.0,0.34]
[1755877038353,0.255883,116900.0,116890.0,0.34]
[1755877038769,0.255883,116900.0,116890.0,0.34014452]
[1755877039185,0.252723,116900.0,116890.0,0.34221452]
[1755877039393,0.258963,116900.0,116890.0,0.34114452]
[1755877040050,0.258963,116900.0,116890.0,0.49958452]
[1755877040263,0.033963,116900.0,116890.0,0.49958452]
[1755877040479,0.258963,116900.0,116890.0,0.49958452]
[1755877040690,0.259963,116900.0,116890.0,0.49881152]
[1755877041553,0.259963,116900.0,116890.0,0.531409]
[1755877042426,0.034963,116900.0,116890.0,0.531409]
[1755877042643,0.259963,116900.0,116890.0,0.531409]
[1755877042868,0.254703,116900.0,116890.0,0.533479]
[1755877043366,0.229,116900.0,116890.0,0.62036375]
[1755877043590,0.22802,116900.0,116890.0,0.61936375]
[1755877043815,0.225,116900.0,116890.0,0.61936375]
[1755877044259,0.22702,116900.0,116890.0,0.62036375]
[1755877044481,0.225,116900.0,116890.0,0.62036375]
[1755877044715,0.22702,116900.0,116890.0,0.62036375]
[1755877044929,0.225,116900.0,116890.0,0.61936375]
[1755877045149,0.226,116900.0,116890.0,0.65951453]
[1755877045370,0.225,116900.0,116890.0,0.65951453]
[1755877045797,0.225,116900.0,116890.0,0.66051453]
[1755877046021,0.250702,116910.0,116890.0,0.86051453]
[1755877046230,0.025702,116910.0,116900.0,0.00107011]
[1755877046455,0.027722,116910.0,116900.0,0.00314011]
[1755877046675,0.030962,116910.0,116890.0,0.85844453]
[1755877046885,0.255962,116910.0,116890.0,0.85844453]
[1755877047108,0.255962,116910.0,116890.0,0.85644453]
[1755877047109,0.23026,116910.0,116890.0,0.85644453]
[1755877047314,0.23026,116910.0,116900.0,0.00107011]
[1755877048210,0.0257,116920.0,116900.0,0.09002486]
[1755877048428,0.225,116930.0,116910.0,0.49988]
[1755877048429,0.22824,116930.0,116910.0,0.49988]
[1755877048647,0.24244902,116930.0,116920.0,0.00106919]
[1755877048868,0.24446902,116930.0,116920.0,0.00106919]
[1755877049313,0.27340802,116930.0,116920.0,0.00106919]
[1755877049796,0.27640802,116930.0,116920.0,0.00106919]
[1755877050037,0.255959,116930.0,116920.0,0.00106919]
[1755877050247,0.225,116930.0,116920.0,0.42895475]
[1755877050469,0.22824,116940.0,116920.0,0.42895475]
[1755877050684,0.225,116930.0,116920.0,0.42895475]
[1755877050902,0.253935,116940.0,116920.0,0.58919475]
[1755877051119,0.253935,116940.0,116930.0,0.00106874]
[1755877051336,0.030955,116940.0,116930.0,0.00106874]
[1755877051567,0.255955,116940.0,116930.0,0.00106874]
[1755877051788,0.255955,116940.0,116920.0,0.58712475]
[1755877052008,0.002,116930.0,116920.0,0.58712475]
[1755877052219,0.028935,116940.0,116920.0,0.58919475]
[1755877052438,0.125,116930.0,116920.0,0.58933927]
[1755877052664,0.229,116940.0,116920.0,0.59175927]
[1755877052879,0.01744902,116960.0,116930.0,0.28688475]
[1755877053086,0.225,116940.0,116930.0,0.28688475]
[1755877053295,0.225,116940.0,116930.0,0.51503475]
[1755877053525,0.028933,116950.0,116930.0,0.51503475]
[1755877053728,0.229,116940.0,116930.0,0.51503475]
[1755877053944,0.229,116940.0,116930.0,0.51284475]
[1755877054159,0.23102,116940.0,116930.0,0.51491475]
[1755877054370,0.00602,116940.0,116930.0,0.51491475]
[1755877054582,0.23102,116940.0,116930.0,0.51491475]
[1755877054812,0.00602,116940.0,116930.0,0.51491475]
[1755877055038,0.23426,116940.0,116930.0,0.51491475]
[1755877055480,0.225,116940.0,116930.0,0.51491475]
[1755877055694,0.00324,116950.0,116930.0,0.51591475]
[1755877055907,0.225,116940.0,116930.0,0.51591475]
[1755877056150,0.225,116940.0,116930.0,0.51491475]
[1755877056356,0.22702,116940.0,116930.0,0.51284475]
[1755877056571,0.22902,116940.0,116930.0,0.51284475]
[1755877056784,0.23226,116940.0,116930.0,0.51491475]
[1755877056993,0.00726,116940.0,116930.0,0.51491475]
[1755877057205,0.23226,116940.0,116930.0,0.51491475]
[1755877057651,0.002,116940.0,116930.0,0.51491475]
[1755877057873,0.002,116940.0,116930.0,0.85733475]
[1755877058096,0.002,116940.0,116930.0,0.85737475]
[1755877058731,0.225,116960.0,116930.0,0.85737475]
[1755877058934,0.22824,116960.0,116940.0,0.0010681]
[1755877059152,0.22824,116960.0,116950.0,0.16028]
[1755877059362,0.23026,116960.0,116950.0,0.16134763]
[1755877060219,0.23226,116960.0,116950.0,0.16134763]
[1755877060447,0.00726,116960.0,116950.0,0.16134763]
[1755877060660,0.23226,116960.0,116950.0,0.16134763]
[1755877060874,0.23226,116960.0,116950.0,0.16341763]
[1755877061079,0.00726,116960.0,116950.0,0.16341763]
[1755877061316,0.23226,116960.0,116950.0,0.16134763]
[1755877061519,0.23026,116960.0,116950.0,0.16184763]
[1755877061724,0.23226,116960.0,116950.0,0.16184763]
[1755877062579,0.23226,116960.0,116950.0,0.20076087]
[1755877062785,0.23226,116960.0,116950.0,0.20176324]
[1755877063223,0.22902,116960.0,116950.0,0.20176324]
[1755877063424,0.22902,116960.0,116950.0,0.20276324]
[1755877063848,0.23226,116960.0,116950.0,0.20276324]
[1755877064073,0.23226,116960.0,116950.0,0.20069324]
[1755877064491,0.23226,116960.0,116950.0,0.20276324]
[1755877064710,0.23226,116960.0,116950.0,0.20069324]
[1755877064925,0.23226,116960.0,116950.0,0.04041324]
[1755877065128,0.23226,116960.0,116950.0,0.20021324]
[1755877067910,0.002,116960.0,116950.0,0.27286277]
[1755877068457,0.22913,116960.0,116950.0,0.27286277]
[1755877068596,0.23218,116960.0,116950.0,0.11106277]
[1755877068800,0.23218,116960.0,116950.0,0.27074277]
[1755877069417,0.23218,116960.0,116950.0,0.27274277]
[1755877069607,0.227,116960.0,116950.0,0.27274277]
[1755877069987,0.227,116960.0,116950.0,0.27074277]
[1755877069988,0.23218,116960.0,116950.0,0.27074277]
[1755877070618,0.23218,116960.0,116950.0,0.27274277]
[1755877070823,0.22913,116960.0,116950.0,0.27274277]
[1755877071031,0.227,116960.0,116950.0,0.27274277]
[1755877071449,0.22913,116960.0,116950.0,0.27274277]
[1755877071670,0.23218,116960.0,116950.0,0.27074277]
[1755877071878,0.00718,116960.0,116950.0,0.27274277]
[1755877072099,0.00413,116960.0,116950.0,0.27274277]
[1755877072324,0.23218,116960.0,116950.0,0.04041324]
[1755877072532,0.23218,116960.0,116950.0,0.20445324]
[1755877073623,0.57218,116960.0,116950.0,0.20445324]
[1755877075787,0.23218,116960.0,116950.0,0.27510277]
[1755877076001,0.23218,116960.0,116950.0,0.27710277]
[1755877076253,0.23218,116960.0,116950.0,0.27510277]
[1755877076509,0.57218,116960.0,116950.0,0.27510277]
[1755877076719,0.002,116960.0,116950.0,0.83310752]
[1755877077142,0.002,116960.0,116950.0,0.56640752]
[1755877077351,0.002,116960.0,116950.0,0.71640752]
[1755877077533,0.002,116960.0,116950.0,1.14190752]
[1755877077771,2.158e-05,116960.0,116950.0,1.14190752]
[1755877078627,0.00305,116980.0,116970.0,0.4]
[1755877078837,0.00518,116980.0,116970.0,0.71604475]
[1755877079013,0.00518,116980.0,116970.0,0.80154475]
[1755877079222,0.00518,116980.0,116970.0,0.80138475]
[1755877079427,0.00518,116980.0,116970.0,0.65745]
[1755877079632,0.00518,116980.0,116970.0,0.82269]
[1755877079838,0.00566262,116980.0,116970.0,0.65745]
[1755877080045,0.00566262,116980.0,116970.0,0.82065]
[1755877080263,0.00566262,116980.0,116970.0,0.65945]
[1755877080468,0.00566262,116980.0,116970.0,0.82261]
[1755877081098,0.00566262,116980.0,116970.0,0.64010475]
[1755877081311,0.00261262,116980.0,116970.0,0.80522475]
[1755877081771,0.00566262,116980.0,116970.0,0.80522475]
[1755877081978,0.00566262,116980.0,116970.0,0.80322475]
[1755877082185,0.00566262,116980.0,116970.0,0.80522475]
[1755877083074,0.00566262,116980.0,116970.0,0.80722475]
[1755877083297,0.00566262,116980.0,116970.0,0.82617762]
[1755877083726,0.00566262,116980.0,116970.0,0.82417762]
[1755877084165,0.00566262,116980.0,116970.0,0.82573762]
[1755877084584,0.00048262,116980.0,116970.0,0.82573762]
[1755877085216,0.00261262,116980.0,116970.0,0.82573762]
[1755877085653,0.00048262,116980.0,116970.0,0.82573762]
[1755877085887,0.00261262,116980.0,116970.0,0.82573762]
[1755877086105,0.00566262,116980.0,116970.0,0.82373762]
[1755877086325,0.00261262,116980.0,116970.0,0.82573762]
[1755877086767,0.00048262,116980.0,116970.0,0.82573762]
[1755877087203,0.00048262,116980.0,116970.0,0.82815762]
[1755877087919,0.00048262,116980.0,116970.0,1.16815762]
[1755877088183,0.00048262,116980.0,116970.0,1.16573762]
[1755877088879,0.00048262,116980.0,116970.0,0.80305762]
[1755877089116,0.00048262,116980.0,116970.0,0.96617762]
[1755877090272,0.00048262,116980.0,116970.0,0.94722475]
[1755877090273,0.01793164,116980.0,116970.0,0.94722475]
[1755877090487,0.02006164,116980.0,116970.0,0.94722475]
[1755877090701,0.01793164,116980.0,116970.0,0.94722475]
[1755877092464,0.02006164,116980.0,116970.0,0.94702475]
[1755877092897,0.01793164,116980.0,116970.0,0.60702475]
[1755877093332,0.02311164,116980.0,116970.0,0.44210475]
[1755877093566,0.02311164,116980.0,116970.0,0.60494475]
[1755877093786,0.02311164,116980.0,116970.0,0.24210475]
[1755877094004,0.01793164,116980.0,116970.0,0.31932475]
[1755877094207,0.00048262,116980.0,116970.0,0.52374475]
[1755877094448,0.00048262,116980.0,116970.0,0.93439428]
[1755877094669,0.00048262,116980.0,116970.0,1.08239428]
[1755877094895,0.00048262,116980.0,116970.0,1.85428428]
[1755877094896,2.729e-05,116980.0,116970.0,1.85428428]
[1755877095137,2.729e-05,116980.0,116970.0,1.85328428]
[1755877095353,2.729e-05,116980.0,116970.0,2.04922701]
[1755877095579,2.729e-05,116980.0,116970.0,1.96010701]
[1755877095812,2.729e-05,116980.0,116970.0,2.04560701]
[1755877096262,2.729e-05,116980.0,116970.0,2.04460701]
[1755877096481,2.729e-05,116980.0,116970.0,1.93878428]
[1755877096704,2.729e-05,116980.0,116970.0,1.93978428]
[1755877096922,2.729e-05,116980.0,116970.0,1.95920062]
[1755877097203,0.00102729,116980.0,116970.0,1.96420062]
[1755877097432,0.00102729,116980.0,116970.0,1.96820062]
[1755877097651,0.00080076,116980.0,116970.0,1.96820062]
[1755877098100,0.00080076,116980.0,116970.0,1.94678428]
[1755877098305,0.00080076,116980.0,116970.0,1.9660974]
[1755877104125,0.00080076,116980.0,116970.0,1.91257787]
[1755877104467,0.00080076,116980.0,116970.0,1.89544787]
[1755877104934,0.00224478,117000.0,116990.0,0.89]
[1755877105160,0.00427478,117000.0,116990.0,0.49014452]
[1755877105373,0.00427478,117000.0,116990.0,0.94168452]
[1755877105595,0.00726478,117000.0,116990.0,0.59168452]
[1755877105816,0.00726478,117000.0,116990.0,0.62999909]
[1755877106480,0.0247138,117000.0,116990.0,0.12395909]
[1755877106700,0.2497138,117000.0,116990.0,0.20789909]
[1755877107175,0.2497138,117000.0,116990.0,0.20785909]
[1755877107397,0.1497138,117000.0,116990.0,0.70481909]
[1755877107610,0.2497138,117000.0,116990.0,0.70681909]
[1755877108033,0.2497138,117000.0,116990.0,0.79370384]
[1755877108250,0.2497138,117000.0,116990.0,0.79170384]
[1755877108470,0.2497138,117000.0,116990.0,0.62534384]
[1755877108684,0.2497138,117000.0,116990.0,0.79146384]
[1755877109339,0.2507138,117000.0,116990.0,0.49146384]
[1755877109764,0.2497138,117000.0,116990.0,0.59739214]
[1755877109986,0.0247138,117000.0,116990.0,0.59739214]
[1755877110191,0.00427478,117000.0,116990.0,0.79953214]